Workbook

Sheet 550本
A1: 列1 | B1: 列2 | C1: 列3 | D1: 列4 | E1: 列5 | F1: 列6 | G1: 列7 | H1: 列8 | I1: 列9 | J1: 列10 | K1: 列11 | L1: 列12 | M1: 列13 | N1: 列14 | O1: 列15 | P1: 列16 | Q1: 列17 | R1: 列18 | S1: 列19 | T1: 列20 | U1: 列1 | V1: 列2 | W1: 列3 | X1: 列4 | Y1: 列5 | Z1: 列6 | AA1: 切断点 | AB1: 切断点がpの場合pterからの距離、 切断点がqの場合qterからの距離、 | AC1: 切断点から動原体までの距離 | AD1: 切断点がpにある場合qの全長、またqにある場合pの全長 | AE1: 列7 | AF1: 列8 | AG1: 列9 | AH1: 列10 | AI1: 列11 | AJ1: 列12 | AK1: 列13
C2: pter→距離（mm） | D2: 動原体からの距離（mm) | E2: 1q全長 | G2: qter→距離（mm） | H2: 動原体からの距離（mm) | I2: 1p全長 | K2: 2番染色体全長 | M2: 2pterからの距離 | N2: centromereからの距離（mm) | O2: 2q全長 (mm) | Q2: 2qterからの距離 | R2: centromereからの距離（mm) | AA2: 9p22 | AB2: 10.5 | AC2: =28-AB2 -> 17.5 | AD2: 57
A3: 160㎜ | B3: 1p36.3 | C3: 1 | D3: 76 | E3: 83 | F3: 1q44 | G3: 1.5 | H3: 82.5 | I3: 77 | K3: 149mm | L3: 2p25.3 | M3: 1 | N3: 57 | O3: 91 | P3: 2q37.3 | Q3: 2 | R3: 89 | S3: 58 | AA3: 2.834645669 | AB3: =2.8346456692*AB2 -> 29.76377953 | AC3: =2.8346456692*AC2 -> 49.60629921 | AD3: =AA3*AD2 -> 161.5748031
A4: 1p全長 | B4: 1p36.2 | C4: 4 | D4: 73 | E4: 83 | F4: 1q43 | G4: 4 | H4: 79 | I4: 77 | K4: 2p全長 | L4: 2p25.2 | M4: 2 | N4: 56 | O4: 91 | P4: 2q37.2 | Q4: 3.5 | R4: 87.5 | S4: 58 | AA4: 20p13 | AB4: 2 | AC4: =18.5-AB4 -> 16.5 | AD4: 24.5
A5: 77 | B5: 1p36.1 | C5: 8 | D5: 69 | E5: 83 | F5: 1q42.3 | G5: 6.5 | H5: 76.5 | I5: 77 | K5: 58 | L5: 2p25.1 | M5: 4 | N5: 54 | O5: 91 | P5: 2q37.1 | Q5: 6 | R5: 85 | S5: 58 | AB5: =AA3*AB4 -> 5.669291338 | AC5: =AA3*AC4 -> 46.77165354 | AD5: =AA3*AD4 -> 69.4488189
A6: 1q全長 | B6: 1p35 | C6: 12 | D6: 65 | E6: 83 | F6: 1q42.2 | G6: 7 | H6: 76 | I6: 77 | K6: 2q全長 | L6: 2p24 | M6: 9 | N6: 49 | O6: 91 | P6: 2q36 | Q6: 9 | R6: 82 | S6: 58
A7: 83 | B7: 1p34.3 | C7: 15 | D7: 62 | E7: 83 | F7: 1q42.1 | G7: 16 | H7: 67 | I7: 77 | K7: 91 | L7: 2p23 | M7: 14 | N7: 44 | O7: 91 | P7: 2q35 | Q7: 13 | R7: 78 | S7: 58
B8: 1p34.2 | C8: 18 | D8: 59 | E8: 83 | F8: 1q41 | G8: 19 | H8: 64 | I8: 77 | L8: 2p22 | M8: 20 | N8: 38 | O8: 91 | P8: 2q34 | Q8: 16 | R8: 75 | S8: 58
B9: 1p34.1 | C9: 21 | D9: 56 | E9: 83 | F9: 1q32.3 | G9: 22.5 | H9: 60.5 | I9: 77 | L9: 2p21 | M9: 24 | N9: 34 | O9: 91 | P9: 2q33 | Q9: 23 | R9: 68 | S9: 58
B10: 1p33 | C10: 25 | D10: 52 | E10: 83 | F10: 1q32.2 | G10: 24 | H10: 59 | I10: 77 | L10: 2p16 | M10: 30 | N10: 28 | O10: 91 | P10: 2q32.3 | Q10: 27 | R10: 64 | S10: 58
B11: 1p32.3 | C11: 28 | D11: 49 | E11: 83 | F11: 1q32.1 | G11: 27.5 | H11: 55.5 | I11: 77 | L11: 2p15 | M11: 35 | N11: 23 | O11: 91 | P11: 2q32.2 | Q11: 30 | R11: 61 | S11: 58
B12: 1p32.2 | C12: 31 | D12: 46 | E12: 83 | F12: 1q31 | G12: 34 | H12: 49 | I12: 77 | L12: 2p14 | M12: 37 | N12: 21 | O12: 91 | P12: 2q32.1 | Q12: 33 | R12: 58 | S12: 58
B13: 1p32.1 | C13: 34 | D13: 43 | E13: 83 | F13: 1q25.3 | G13: 41 | H13: 42 | I13: 77 | L13: 2p13 | M13: 43 | N13: 15 | O13: 91 | P13: 2q31 | Q13: 42 | R13: 49 | S13: 58
B14: 1p31.3 | C14: 38 | D14: 39 | E14: 83 | F14: 1q25.2 | G14: 45 | H14: 38 | I14: 77 | L14: 2p12 | M14: 50 | N14: 8 | O14: 91 | P14: 2q24.3 | Q14: 48 | R14: 43 | S14: 58
B15: 1p31.2 | C15: 41 | D15: 36 | E15: 83 | F15: 1q25.1 | G15: 47 | H15: 36 | I15: 77 | L15: 2p11.2 | M15: 54 | N15: 4 | O15: 91 | P15: 2q24.2 | Q15: 51 | R15: 40 | S15: 58
B16: 1p31.1 | C16: 44 | D16: 33 | E16: 83 | F16: 1q24 | G16: 49 | H16: 34 | I16: 77 | L16: 2p11.1 | M16: 57 | N16: 3 | O16: 91 | P16: 2q24.1 | Q16: 53 | R16: 38 | S16: 58
B17: 1p22.3 | C17: 48 | D17: 29 | E17: 83 | F17: 1q23.3 | G17: 51 | H17: 32 | I17: 77 | P17: 2q23 | Q17: 56 | R17: 35 | S17: 58
B18: 1p22.2 | C18: 51 | D18: 26 | E18: 83 | F18: 1q23.2 | G18: 52 | H18: 31 | I18: 77 | P18: 2q22 | Q18: 61 | R18: 30 | S18: 58
B19: 1p22.1 | C19: 54 | D19: 23 | E19: 83 | F19: 1q23.1 | G19: 56 | H19: 27 | I19: 77 | P19: 2q21.3 | Q19: 65 | R19: 26 | S19: 58
B20: 1p21 | C20: 60 | D20: 17 | E20: 83 | F20: 1q22 | G20: 61 | H20: 22 | I20: 77 | P20: 2q21.2 | Q20: 68 | R20: 23 | S20: 58
B21: 1p13.3 | C21: 65 | D21: 12 | E21: 83 | F21: 1q21 | G21: 65 | H21: 18 | I21: 77 | P21: 2q21.1 | Q21: 72 | R21: 19 | S21: 58
B22: 1p13.2 | C22: 67 | D22: 1 | E22: 83 | F22: 1q12 | G22: 74.5 | H22: 8.5 | I22: 77 | P22: 2q14.3 | Q22: 75 | R22: 16 | S22: 58
B23: 1p13.1 | C23: 69 | D23: 8 | E23: 83 | F23: 1q11 | G23: 76 | H23: 7 | I23: 77 | P23: 2q14.2 | Q23: 77 | R23: 14 | S23: 58
B24: 1p12 | C24: 73 | D24: 4 | E24: 83 | P24: 2q14.1 | Q24: 79 | R24: 12 | S24: 58
B25: 1p11 | C25: 75 | D25: 2 | E25: 83 | P25: 2q13 | Q25: 82 | R25: 9 | S25: 58
P26: 2q12 | Q26: 85 | R26: 6 | S26: 58
P27: 2q11.2 | Q27: 88 | R27: 3 | S27: 58
P28: 2q11.1 | Q28: 90.5 | R28: 0.5 | S28: 58
A30: 3番染色体 | C30: pter→距離 | D30: centromere→距離 | E30: q全長 | G30: 3qter→距離 | H30: 動原体→距離 | I30: p全長 | K30: 4番染色体 | M30: pter→距離 | N30: 動原体→距離 | Q30: qter→距離 | R30: 動原体→距離 | S30: 31
A31: 3番全長 | B31: 3p26 | C31: 2 | D31: 55 | E31: 67 | F31: 3q29 | G31: 2 | H31: 65 | I31: 57 | K31: 4番全長 | L31: 4p16.3 | M31: 1 | N31: 30 | O31: 85 | P31: 4q35 | Q31: 3 | R31: 82 | S31: 31
A32: 124mm | B32: 3p25 | C32: 1.5 | D32: 52.5 | E32: 67 | F32: 3q28 | G32: 5 | H32: 62 | I32: 57 | K32: 116ｍｍ | L32: 4p16.2 | M32: 2 | N32: 29 | O32: 85 | P32: 4q34 | Q32: 8 | R32: 78 | S32: 31
A33: 3p全長 | B33: 3p24.3 | C33: 10 | D33: 47 | E33: 67 | F33: 3q27 | G33: 10 | H33: 57 | I33: 57 | K33: 短腕全長 | L33: 4p16.1 | M33: 6 | N33: 25 | O33: 85 | P33: 4q33 | Q33: 13 | R33: 72 | S33: 31
A34: 57㎜ | B34: 3p24.2 | C34: 13 | D34: 44 | E34: 67 | F34: 3q26.3 | G34: 14 | H34: 53 | I34: 57 | K34: 31㎜ | L34: 4p15.3 | M34: 11 | N34: 20 | O34: 85 | P34: 4q32 | Q34: 18 | R34: 67 | S34: 31
A35: 3q全長 | B35: 3p24.1 | C35: 15 | D35: 42 | E35: 67 | F35: 3q26.2 | G35: 17 | H35: 50 | I35: 57 | K35: 長腕全長 | L35: 4p15.2 | M35: 14 | N35: 17 | O35: 85 | P35: 4q31.3 | Q35: 23 | R35: 62 | S35: 31
A36: 67mm | B36: 3p23 | C36: 17 | D36: 40 | E36: 67 | F36: 3q26.1 | G36: 21 | H36: 48 | I36: 57 | K36: 85ｍｍ | L36: 4p15.1 | M36: 18 | N36: 13 | O36: 85 | P36: 4q31.2 | Q36: 26 | R36: 59 | S36: 31
B37: 3p22 | C37: 19 | D37: 38 | E37: 67 | F37: 3q25.3 | G37: 25 | H37: 42 | I37: 57 | L37: 4p14 | M37: 23 | N37: 8 | O37: 85 | P37: 4q31.1 | Q37: 27 | R37: 58 | S37: 31
B38: 3p21.3 | C38: 27 | D38: 30 | E38: 67 | F38: 3q25.2 | G38: 28 | H38: 39 | I38: 57 | L38: 4p13 | M38: 27 | N38: 4 | O38: 85 | P38: 4q28 | Q38: 35 | R38: 50 | S38: 31
B39: 3p21.2 | C39: 33 | D39: 24 | E39: 67 | F39: 3q25.1 | G39: 29.5 | H39: 37.5 | I39: 57 | L39: 4p12 | M39: 29 | N39: 2 | O39: 85 | P39: 4q27 | Q39: 40 | R39: 45 | S39: 31
B40: 3p21.1 | C40: 35 | D40: 22 | E40: 67 | F40: 3q24 | G40: 31 | H40: 36 | I40: 57 | L40: 4p11 | M40: 30 | N40: 1 | O40: 85 | P40: 4q26 | Q40: 45 | R40: 40 | S40: 31
B41: 3p14.3 | C41: 38 | D41: 19 | E41: 67 | F41: 3q23 | G41: 35 | H41: 32 | I41: 57 | P41: 4q25 | Q41: 49 | R41: 36 | S41: 31
B42: 3p14.2 | C42: 40 | D42: 17 | E42: 67 | F42: 3q22 | G42: 37 | H42: 30 | I42: 57 | P42: 4q24 | Q42: 52 | R42: 33 | S42: 31
B43: 3p14.1 | C43: 42 | D43: 15 | E43: 67 | F43: 3q21 | G43: 44 | H43: 23 | I43: 57 | P43: 4q23 | Q43: 55 | R43: 30 | S43: 31
B44: 3p13 | C44: 46 | D44: 11 | E44: 67 | F44: 3q13.3 | G44: 52 | H44: 15 | I44: 57 | P44: 4q22 | Q44: 59 | R44: 26 | S44: 31
B45: 3p12 | C45: 52 | D45: 5 | E45: 67 | F45: 3q13.2 | G45: 56 | H45: 11 | I45: 57 | P45: 4q21.3 | Q45: 63 | R45: 22 | S45: 31
B46: 3p11.2 | C46: 55 | D46: 2 | E46: 67 | F46: 3q13.1 | G46: 60 | H46: 7 | I46: 57 | P46: 4q21.2 | Q46: 66 | R46: 19 | S46: 31
F47: 3q12 | G47: 62.5 | H47: 4.5 | I47: 57 | P47: 4q21.1 | Q47: 70 | R47: 15 | S47: 31
F48: 3q11.2 | G48: 64 | H48: 3 | I48: 57 | P48: 4q13.3 | Q48: 72 | R48: 13 | S48: 31
P49: 4q13.2 | Q49: 74 | R49: 11 | S49: 31
P50: 4q13.1 | Q50: 77 | R50: 8 | S50: 31
P51: 4q12 | Q51: 83 | R51: 2 | S51: 31
P52: 4q11 | Q52: 84 | R52: 1 | S52: 31
A55: 5番染色体 | B55: 5p | C55: pter→距離 | D55: centromere →距離 | E55: 5q全体の長さ | F55: 5q 81mm | G55: qter→距離 | H55: 動原体→距離 | I55: 5p全体の長さ | K55: 6番染色体 | M55: pter→距離 | N55: centromer→距離 | Q55: qter→距離 | R55: centromere→距離
B56: 5p11 | C56: 28 | D56: 1 | E56: 81 | F56: 5q11.2 | G56: 80.5 | H56: 0.5 | I56: 29 | K56: 108㎜ | L56: 6p25 | M56: 2 | N56: 35 | O56: 71 | P56: 6q27 | Q56: 1.5 | R56: =71-Q56 -> 69.5 | S56: 37
A57: 5番全体 | B57: 5p12 | C57: 26 | D57: 3 | E57: 81 | F57: 5q12 | G57: 78 | H57: 3 | I57: 29 | K57: 6p全長 | L57: 6p24 | M57: 5 | N57: 32 | O57: 71 | P57: 6q26 | Q57: 4 | R57: =71-Q57 -> 67 | S57: 37
A58: 110 | B58: 5p13.1 | C58: 24 | D58: 5 | E58: 81 | F58: 5q13.1 | G58: 73 | H58: 8 | I58: 29 | K58: 37㎜ | L58: 6p23 | M58: 8 | N58: 29 | O58: 71 | P58: 6q25.3 | Q58: 7.5 | R58: 63.5 | S58: 37
A59: 5p全体の長さ | B59: 5p13.2 | C59: 23 | D59: 6 | E59: 81 | F59: 5q13.3 | G59: 69 | H59: 12 | I59: 29 | K59: 6q全長 | L59: 6p22.3 | M59: 11 | N59: 26 | O59: 71 | P59: 6q25.2 | Q59: 10 | R59: 61 | S59: 37
A60: 29 | B60: 5p13.3 | C60: 20 | D60: 9 | E60: 81 | F60: 5q14 | G60: 67 | H60: 14 | I60: 29 | K60: 71㎜ | L60: 6p22.2 | M60: 13 | N60: 24 | O60: 71 | P60: 6q25.1 | Q60: 13 | R60: 58 | S60: 37
A61: 5q全体の長さ | B61: 5p14 | C61: 15 | D61: 14 | E61: 81 | F61: 5q15 | G61: 64 | H61: 17 | I61: 29 | L61: 6p22.1 | M61: 15 | N61: 22 | O61: 71 | P61: 6q24 | Q61: 17.5 | R61: 53.5 | S61: 37
A62: 81 | B62: 5p15.1 | C62: 9 | D62: 20 | E62: 81 | F62: 5q21 | G62: 48 | H62: 23 | I62: 29 | L62: 6p21.3 | M62: 19 | N62: 18 | O62: 71 | P62: 6q23.3 | Q62: 22 | R62: 49 | S62: 37
B63: 5p15.2 | C63: 7 | D63: 22 | E63: 81 | F63: 5q22 | G63: 43 | H63: 28 | I63: 29 | L63: 6p21.2 | M63: 23 | N63: 14 | O63: 71 | P63: 6q23.2 | Q63: 25 | R63: 46 | S63: 37
B64: 5p15.3 | C64: 3 | D64: 26 | E64: 81 | F64: 5q23.1 | G64: 39 | H64: 42 | I64: 29 | L64: 6p21.1 | M64: 27 | N64: 10 | O64: 71 | P64: 6q23.1 | Q64: 26 | R64: 45 | S64: 37
F65: 5q23.2 | G65: 37 | H65: 44 | I65: 29 | L65: 6p12 | M65: 33 | N65: 4 | O65: 71 | P65: 6q22.3 | Q65: 28 | R65: 43 | S65: 37
F66: 5q23.3 | G66: 35 | H66: 46 | I66: 29 | L66: 6p11.2 | M66: 35 | N66: 2 | O66: 71 | P66: 6q22.2 | Q66: 31 | R66: 40 | S66: 37
F67: 5q31.1 | G67: 30 | H67: 51 | I67: 29 | L67: 6p11.1 | M67: 36 | N67: 1 | O67: 71 | P67: 6q22.1 | Q67: 33 | R67: 38 | S67: 37
F68: 5q31.2 | G68: 25 | H68: 56 | I68: 29 | P68: 6q21 | Q68: 39 | R68: 32 | S68: 37
F69: 5q32 | G69: 19 | H69: 62 | I69: 29 | P69: 6q16.3 | Q69: 43 | R69: 28 | S69: 37
F70: 5q33.1 | G70: 16 | H70: 65 | I70: 29 | P70: 6q16.2 | Q70: 45 | R70: 26 | S70: 37
F71: 5q33.2 | G71: 15 | H71: 66 | I71: 29 | P71: 6q16.1 | Q71: 47 | R71: 24 | S71: 37
F72: 5q33.3 | G72: 13 | H72: 68 | I72: 29 | P72: 6q15 | Q72: 53 | R72: 18 | S72: 37
F73: 5q34 | G73: 8 | H73: 73 | I73: 29 | P73: 6q14 | Q73: 57 | R73: 14 | S73: 37
F74: 5q35.1 | G74: 6 | H74: 75 | I74: 29 | P74: 6q13 | Q74: 63 | R74: 8 | S74: 37
F75: 5q35.2 | G75: 4 | H75: 77 | I75: 29 | P75: 6q12 | Q75: 68 | R75: 3 | S75: 37
F76: 5q35.3 | G76: 3 | H76: 78 | I76: 29 | P76: 6q11 | Q76: 70.5 | R76: 0.5 | S76: 37
A79: 7番染色体 | C79: pter→距離 | D79: 動原体→距離 | G79: qter→距離 | H79: 動原体の距離 | M79: pter→距離 | N79: 動原体→距離 | Q79: qter→距離 | R79: 動原体→距離
A80: 7番全長 | B80: 7p22 | C80: 1.5 | D80: 32.5 | E80: 63 | F80: 7q36 | G80: 4 | H80: 59 | I80: 34 | K80: 8番全長 | L80: 8p23.3 | M80: 1 | N80: 25 | O80: 62 | P80: 8q24.3 | Q80: 2 | R80: =62-Q80 -> 60 | S80: 26
A81: 97㎜ | B81: 7p21 | C81: 5 | D81: 29 | E81: 63 | F81: 7q35 | G81: 8 | H81: 55 | I81: 34 | K81: 88mm | L81: 8p23.2 | M81: 2 | N81: 24 | O81: 62 | P81: 8q24.23 | Q81: 5 | R81: 57 | S81: 26
A82: 7p全長 | B82: 7p15.3 | C82: 9 | D82: 25 | E82: 63 | F82: 7q34 | G82: 10 | H82: 53 | I82: 34 | K82: 8p 全長 | L82: 8p23.1 | M82: 4 | N82: 22 | O82: 62 | P82: 8q24.22 | Q82: 7 | R82: 55 | S82: 26
A83: 34mm | B83: 7p15.2 | C83: 11 | D83: 23 | E83: 63 | F83: 7q33 | G83: 12 | H83: 51 | I83: 34 | K83: 26mm | L83: 8p22 | M83: 8 | N83: 18 | O83: 62 | P83: 8q24.21 | Q83: 8 | R83: 54 | S83: 26
A84: 7q全長 | B84: 7p15.1 | C84: 15 | D84: 19 | E84: 63 | F84: 7q32 | G84: 15 | H84: 48 | I84: 34 | K84: 8q 全長 | L84: 8p21.3 | M84: 12 | N84: 14 | O84: 62 | P84: 8q24.1 | Q84: 13 | R84: 59 | S84: 26
A85: 63mm | B85: 7p14 | C85: 20 | D85: 14 | E85: 63 | F85: 7q31.3 | G85: 22 | H85: 41 | I85: 34 | K85: 62mm | L85: 8p21.2 | M85: 15 | N85: 11 | O85: 62 | P85: 8q23 | Q85: 20 | R85: 42 | S85: 26
B86: 7p13 | C86: 25 | D86: 9 | E86: 63 | F86: 7q31.2 | G86: 25 | H86: 38 | I86: 34 | L86: 8p21.1 | M86: 17 | N86: 9 | O86: 62 | P86: 8q22.3 | Q86: 25 | R86: 37 | S86: 26
B87: 7p12 | C87: 30 | D87: 4 | E87: 63 | F87: 7q31.1 | G87: 27 | H87: 36 | I87: 34 | L87: 8p12 | M87: 21 | N87: 5 | O87: 62 | P87: 8q22.2 | Q87: 28 | R87: 34 | S87: 26
B88: 7p11.2 | C88: 32 | D88: 2 | E88: 63 | F88: 7q22 | G88: 34 | H88: 29 | I88: 34 | L88: 8p11.2 | M88: 24 | N88: 2 | O88: 62 | P88: 8q22.1 | Q88: 30 | R88: 32 | S88: 26
B89: 7p11.1 | C89: 33 | D89: 1 | E89: 63 | F89: 7q21.3 | G89: 42 | H89: 21 | I89: 34 | L89: 8p11.1 | M89: 25 | N89: 1 | O89: 62 | P89: 8q21.3 | Q89: 34 | R89: 28 | S89: 26
E90: 63 | F90: 7q21.2 | G90: 44 | H90: 19 | I90: 34 | P90: 8q21.2 | Q90: 38 | R90: 24 | S90: 26
F91: 7q21.1 | G91: 47 | H91: 16 | I91: 34 | P91: 8q21.1 | Q91: 42 | R91: 20 | S91: 26
F92: 7q11.23 | G92: 53 | H92: 10 | I92: 34 | P92: 8q13 | Q92: 47 | R92: 15 | S92: 26
F93: 7q11.22 | G93: 57 | H93: 6 | I93: 34 | P93: 8q12 | Q93: 52 | R93: 10 | S93: 26
F94: 7q11.21 | G94: 60 | H94: 3 | I94: 34 | P94: 8q11.23 | Q94: 55 | R94: 7 | S94: 26
F95: 7q11.1 | G95: 62.5 | H95: 0.5 | I95: 34 | P95: 8q11.22 | Q95: 57 | R95: 5 | S95: 26
P96: 8q11.21 | Q96: 60 | R96: 2 | S96: 26
P97: 8q11.1 | Q97: 61 | R97: 1 | S97: 26
A100: ９番染色体 | C100: pter→距離 | D100: 動原体→距離 | G100: pter→距離 | H100: 動原体→距離 | K100: 10番全長 | M100: pter→距離 | N100: 動原体→距離 | Q100: qter→距離 | R100: 動原体→距離
A101: 全長 | B101: 9p24 | C101: 2.5 | D101: =28-C101 -> 25.5 | E101: 57 | F101: 9q34.3 | G101: 3 | H101: =57-G101 -> 54 | I101: 28 | K101: 83mm | L101: 10p15 | M101: 2 | N101: =27-M101 -> 25 | O101: 56 | P101: 10q26.3 | Q101: 2 | R101: =56-Q101 -> 54 | S101: 27
A102: 85mm | B102: 9p23 | C102: 6.5 | D102: =28-C102 -> 21.5 | E102: 57 | F102: 9q34.2 | G102: 7 | H102: =57-G102 -> 50 | I102: 28 | K102: 10p 27mm | L102: 10p14 | M102: 5 | N102: =27-M102 -> 22 | O102: 56 | P102: 10q26.2 | Q102: 5 | R102: =56-Q102 -> 51 | S102: 27
A103: p の全長 | B103: 9p22 | C103: 10.5 | D103: 17.5 | E103: 57 | F103: 9q34.1 | G103: 10 | H103: 47 | I103: 28 | K103: 10q 56mm | L103: 10p13 | M103: 8 | N103: 19 | O103: 56 | P103: 10q26.1 | Q103: 8 | R103: 48 | S103: 27
A104: 28mm | B104: 9p21 | C104: 15 | D104: 13 | E104: 57 | F104: 9q33 | G104: 14 | H104: 43 | I104: 28 | L104: 10p12.3 | M104: 12.5 | N104: 14.5 | O104: 56 | P104: 10q25.3 | Q104: 13 | R104: 43 | S104: 27
A105: qの全長 | B105: 9p13 | C105: 21.5 | D105: =28-C105 -> 6.5 | E105: 57 | F105: 9q32 | G105: 17.5 | H105: 39.5 | I105: 28 | L105: 10p12.2 | M105: 15 | N105: 12 | O105: 56 | P105: 10q25.2 | Q105: 15 | R105: 41 | S105: 27
A106: 57mm | B106: 9p12 | C106: 25.5 | D106: 2.5 | E106: 57 | F106: 9q31 | G106: 21 | H106: =E107-21 -> 36 | I106: 28 | L106: 10p12.1 | M106: 17 | N106: 10 | O106: 56 | P106: 10q25.1 | Q106: 17 | R106: 39 | S106: 27
B107: 9p11 | C107: 27.5 | D107: 0.5 | E107: 57 | F107: 9q22.3 | G107: 25 | H107: =57-G107 -> 32 | I107: 28 | L107: 10p11.2 | M107: 22 | N107: 5 | O107: 56 | P107: 10q24.3 | Q107: 21 | R107: 35 | S107: 27
F108: 9q22.2 | G108: 28 | H108: 29 | I108: 28 | L108: 10p11.1 | M108: 26 | N108: 1 | O108: 56 | P108: 10q24.2 | Q108: 24 | R108: 32 | S108: 27
F109: 9q22.1 | G109: 31 | H109: 26 | I109: 28 | P109: 10q24.1 | Q109: 25 | R109: 31 | S109: 27
F110: 9q21.3 | G110: 34 | H110: 23 | I110: 28 | P110: 10q23.3 | Q110: 28 | R110: 28 | S110: 27
F111: 9q21.2 | G111: 37 | H111: 20 | I111: 28 | P111: 10q23.2 | Q111: 29 | R111: 27 | S111: 27
F112: 9q21.1 | G112: 41 | H112: 16 | I112: 28 | P112: 10q23.1 | Q112: 31.5 | R112: 24.5 | S112: 27
F113: 9q13 | G113: 46 | H113: 11 | I113: 28 | P113: 10q22.3 | Q113: 34 | R113: 22 | S113: 27
F114: 9q12 | G114: 53 | H114: 4 | I114: 28 | P114: 10q22.2 | Q114: 36 | R114: 20 | S114: 27
F115: 9q11 | G115: 56 | H115: 1 | P115: 10q22.1 | Q115: 38 | R115: 18 | S115: 27
P116: 10q21.3 | Q116: 43 | R116: 13 | S116: 27
P117: 10q21.2 | Q117: 45 | R117: 11 | S117: 27
P118: 10q21.1 | Q118: 48 | R118: 8 | S118: 27
P119: 10q11.2 | Q119: 53 | R119: 3 | S119: 27
P120: 10q11.1 | Q120: 53.5 | R120: 2.5 | S120: 27
C123: pter→距離 | D123: 動原体→距離 | G123: qter→距離 | H123: 動原体→距離 | M123: p→距離 | N123: 動原体→距離 | Q123: q→距離 | R123: 動原体→距離
A124: 11番全長 | B124: 11p15.5 | C124: 1.5 | D124: =33-C124 -> 31.5 | E124: 50 | F124: 11q25 | G124: 1 | H124: 49 | I124: 33 | K124: 12の全長 | L124: 12p13.3 | M124: 3 | N124: =21-M124 -> 18 | O124: 60 | P124: 12q24.33 | Q124: 2 | R124: =60-Q124 -> 58 | S124: 21
A125: 83mm | B125: 11p15.4 | C125: 4 | D125: =33-C125 -> 29 | E125: 50 | F125: 11q24.3 | G125: 2 | H125: 48 | I125: 33 | K125: 81ｍｍ | L125: 12p13.2 | M125: 6 | N125: =21-M125 -> 15 | O125: 60 | P125: 12q24.32 | Q125: 4 | R125: =60-Q125 -> 56 | S125: 21
A126: 11p 33mm | B126: 11p15.3 | C126: 6 | D126: 27 | E126: 50 | F126: 11q24.2 | G126: 4 | H126: 46 | I126: 33 | K126: 12pの全長 | L126: 12p13.1 | M126: 8 | N126: 13 | O126: 60 | P126: 12q24.31 | Q126: 7 | R126: 53 | S126: 21
A127: 11q 50mm | B127: 11p15.2 | C127: 7.5 | D127: 25.5 | E127: 50 | F127: 11q24.1 | G127: 6 | H127: 44 | I127: 33 | K127: 21ｍｍ | L127: 12p12.3 | M127: 11 | N127: 10 | O127: 60 | P127: 12q24.2 | Q127: 10 | R127: 50 | S127: 21
B128: 11p15.1 | C128: 11 | D128: 22 | E128: 50 | F128: 11q23.3 | G128: 10 | H128: 40 | I128: 33 | K128: 12qの全長 | L128: 12p12.2 | M128: 12 | N128: 9 | O128: 60 | P128: 12q24.1 | Q128: 15 | R128: 45 | S128: 21
B129: 11p14 | C129: 15 | D129: 18 | E129: 50 | F129: 11q23.2 | G129: 13.5 | H129: 36.5 | I129: 33 | K129: 60ｍｍ | L129: 12p12.1 | M129: 13.5 | N129: 7.5 | O129: 60 | P129: 12q23 | Q129: 22 | R129: 38 | S129: 21
B130: 11p13 | C130: 20 | D130: 13 | E130: 50 | F130: 11q23.1 | G130: 15 | H130: 35 | I130: 33 | L130: 12p11.2 | M130: 17 | N130: 4 | O130: 60 | P130: 12q22 | Q130: 26 | R130: 34 | S130: 21
B131: 11p12 | C131: 23 | D131: 10 | E131: 50 | F131: 11q22.3 | G131: 17.5 | H131: 32.5 | I131: 33 | L131: 12p11.1 | M131: 20 | N131: 1 | O131: 60 | P131: 12q21.3 | Q131: 30 | R131: 30 | S131: 21
B132: 11p11.2 | C132: 27 | D132: 6 | E132: 50 | F132: 11q22.2 | G132: 18.5 | H132: 31.5 | I132: 33 | P132: 12q21.2 | Q132: 32.5 | R132: 27.5 | S132: 21
B133: 11p11.12 | C133: 31 | D133: 2 | E133: 50 | F133: 11q22.1 | G133: 20 | H133: 30 | I133: 33 | P133: 12q21.1 | Q133: 36 | R133: 24 | S133: 21
B134: 11p11.11 | C134: 32 | D134: 1 | E134: 50 | F134: 11q21 | G134: 22 | H134: 28 | I134: 33 | P134: 12q15 | Q134: 38.5 | R134: 21.5 | S134: 21
F135: 11q14.3 | G135: 24 | H135: 26 | I135: 33 | P135: 12q14 | Q135: 42 | R135: 18 | S135: 21
F136: 11q14.2 | G136: 25 | H136: 25 | I136: 33 | P136: 12q13.3 | Q136: 47 | R136: 13 | S136: 21
F137: 11q14.1 | G137: 28 | H137: 22 | I137: 33 | P137: 12q13.2 | Q137: 49 | R137: 11 | S137: 21
F138: 11q13.5 | G138: 30 | H138: 20 | I138: 33 | P138: 12q13.1 | Q138: 54 | R138: 6 | S138: 21
F139: 11q13.4 | G139: 31.5 | H139: 18.5 | I139: 33 | P139: 12q12 | Q139: 57 | R139: 3 | S139: 21
F140: 11q13.3 | G140: 35 | H140: 15 | I140: 33 | P140: 12q11 | Q140: 59.5 | R140: 0.5 | S140: 21
F141: 11q13.2 | G141: 39 | H141: =50-G141 -> 11 | I141: 33
F142: 11q13.1 | G142: 43 | H142: =50-G142 -> 7 | I142: 33
F143: 11q12 | G143: 47.5 | H143: =50-G143 -> 2.5 | I143: 33
F144: 11q11 | G144: 49.5 | H144: =50-G144 -> 0.5 | I144: 33
A147: 13全長 | C147: pter→距離 | D147: 動原体→ | G147: qter→距離 | H147: 動原体→距離 | K147: 14全長 | M147: pter→距離 | N147: 動原体→距離 | Q147: qter→距離 | R147: 動原体→距離
A148: 68mm | B148: 13p13 | C148: 1.5 | D148: 9.5 | E148: 58 | F148: 13q34 | G148: 2 | H148: =58-G148 -> 56 | I148: 10 | K148: 65.5mm | L148: 14p13 | M148: 1.5 | N148: =10-M148 -> 8.5 | O148: 55.5 | P148: 14q32.3 | Q148: 3 | R148: =55.5-Q148 -> 52.5 | S148: 10
A149: 13p全長 | B149: 13p12 | C149: 3 | D149: 7 | E149: 58 | F149: 13q33 | G149: 6 | H149: =58-G149 -> 52 | I149: 10 | L149: 14p12 | M149: 4 | N149: =10-M149 -> 6 | O149: 55.5 | P149: 14q32.2 | Q149: 6.5 | R149: =55.5-Q149 -> 49 | S149: 10
A150: 10mm | B150: 13p11.2 | C150: 8 | D150: 2 | E150: 58 | F150: 13q32 | G150: 12 | H150: 46 | I150: 10 | K150: 14p | L150: 14p11.2 | M150: 7 | N150: =10-M150 -> 3 | O150: 55.5 | P150: 14q32.1 | Q150: 10 | R150: 45.5 | S150: 10
A151: 13q全長 | B151: 13p11.1 | C151: 9 | D151: 1 | E151: 58 | F151: 13q31 | G151: 14 | H151: 44 | I151: 10 | K151: 10mm | L151: 14p11.1 | M151: 9.5 | N151: =10-M151 -> 0.5 | O151: 55.5 | P151: 14q31 | Q151: 15 | R151: 40.5 | S151: 10
A152: 58mm | F152: 13q22 | G152: 25 | H152: 33 | I152: 10 | K152: 14q | P152: 14q24.3 | Q152: 20 | R152: 35.5 | S152: 10
F153: 13q21.3 | G153: 31 | H153: 27 | I153: 10 | K153: 55.5mm | P153: 14q24.2 | Q153: 24 | R153: 31.5 | S153: 10
F154: 13q21.2 | G154: 34 | H154: 24 | I154: 10 | P154: 14q24.1 | Q154: 27 | R154: 28.5 | S154: 10
F155: 13q21.1 | G155: 36 | H155: 22 | I155: 10 | P155: 14q23 | Q155: 29 | R155: 26.5 | S155: 10
F156: 13q14.3 | G156: 39 | H156: 19 | I156: 10 | P156: 14q22 | Q156: 34 | R156: 21.5 | S156: 10
F157: 13q14.2 | G157: 41 | H157: 17 | I157: 10 | P157: 14q21 | Q157: 40 | R157: 15.5 | S157: 10
F158: 13q14.1 | G158: 43 | H158: 15 | I158: 10 | P158: 14q13 | Q158: 44 | R158: 11.5 | S158: 10
F159: 13q13 | G159: 47 | H159: 11 | I159: 10 | P159: 14q12 | Q159: 47 | R159: 8.5 | S159: 10
F160: 13q12.3 | G160: 51 | H160: 7 | I160: 10 | P160: 14q11.2 | Q160: 52 | R160: 3.5 | S160: 10
F161: 13q12.2 | G161: 52.5 | H161: 5.5 | I161: 10 | P161: 14q11.1 | Q161: 55 | R161: 0.5 | S161: 10
F162: 13q12.1 | G162: 55 | H162: 3 | I162: 10
F163: 13q11 | G163: 57.5 | H163: 0.5 | I163: 10
A166: 15番染色体 | C166: pter→距離 | D166: 動原体→距離 | G166: 15qter→距離 | H166: 動原体→距離 | M166: pter→距離 | N166: 動原体→距離 | Q166: qter→距離 | R166: 動原体→距離
A167: 全長 | B167: 15p13 | C167: 1.5 | D167: =10-C167 -> 8.5 | E167: 52.5 | F167: 15q26.3 | G167: 1.5 | H167: =52.5-G167 -> 51 | I167: 10 | K167: 16全長 | L167: 16p13.3 | M167: 2 | N167: =24-M167 -> 22 | O167: 34 | P167: 16q24 | Q167: 2.5 | R167: =34-Q167 -> 31.5 | S167: 24
A168: 62mm | B168: 15p12 | C168: 4 | D168: =10-C168 -> 6 | E168: 52.5 | F168: 15q26.2 | G168: 4 | H168: =52.5-G168 -> 48.5 | I168: 10 | K168: 58mm | L168: 16p13.2 | M168: 7 | N168: 17 | O168: 34 | P168: 16q23 | Q168: 7.5 | R168: =34-Q168 -> 26.5 | S168: 24
A169: p | B169: 15p11.2 | C169: 7 | D169: =10-C169 -> 3 | E169: 52.5 | F169: 15q26.1 | G169: 7 | H169: 45.5 | I169: 10 | K169: 16p | L169: 16p13.1 | M169: 9 | N169: 15 | O169: 34 | P169: 16q22 | Q169: 12.5 | R169: 21.5 | S169: 24
A170: 10mm | B170: 15p11 | C170: 8.5 | D170: =10-C170 -> 1.5 | E170: 52.5 | F170: 15q25 | G170: 10 | H170: 42.5 | I170: 10 | K170: 24mm | L170: 16p12 | M170: 14 | N170: 10 | O170: 34 | P170: 16q21 | Q170: 16 | R170: 18 | S170: 24
A171: q | F171: 15q24.3 | G171: 12 | H171: 40.5 | I171: 10 | K171: 16q | L171: 16p11.2 | M171: 19 | N171: 5 | O171: 34 | P171: 16q13 | Q171: 19 | R171: 15 | S171: 24
A172: 52.5mm | F172: 15q24.2 | G172: 14.5 | H172: 38 | I172: 10 | K172: 34mm | L172: 16p11.1 | M172: 23 | N172: 1 | O172: 34 | P172: 16q12.2 | Q172: 22 | R172: 12 | S172: 24
F173: 15q24.1 | G173: 17 | H173: 35.5 | I173: 10 | P173: 16q12.1 | Q173: 24 | R173: 10 | S173: 24
F174: 15q23 | G174: 20 | H174: 32.5 | I174: 10 | P174: 16q11.2 | Q174: 31 | R174: 3 | S174: 24
F175: 15q22.3 | G175: 23 | H175: 29.5 | I175: 10 | P175: 16q11.1 | Q175: 33.5 | R175: 0.5 | S175: 24
F176: 15q22.2 | G176: 26 | H176: 26.5 | I176: 10
F177: 15q22.1 | G177: 27 | H177: 25.5 | I177: 10
F178: 15q21.3 | G178: 29 | H178: 23.5 | I178: 10
F179: 15q21.2 | G179: 30.5 | H179: 22 | I179: 10
F180: 15q21.1 | G180: 32.5 | H180: 20 | I180: 10
F181: 15q15 | G181: 36 | H181: 16.5 | I181: 10
F182: 15q14 | G182: 39.5 | H182: 13 | I182: 10
F183: 15q13 | G183: 43 | H183: 9.5 | I183: 10
F184: 15q12 | G184: 45.5 | H184: 7 | I184: 10
F185: 15q11.2 | G185: 47.5 | H185: 5 | I185: 10
F186: 15q11.1 | G186: 51.5 | H186: 1 | I186: 10
A189: 17番 | C189: pter→距離 | D189: 動原体→距離 | G189: pter→距離 | H189: 動原体→距離 | M189: pter→距離 | N189: 動原体→距離 | Q189: qter→距離 | R189: 動原体→距離
A190: 全長 | B190: 17p13 | C190: 4 | D190: =19-C190 -> 15 | E190: 37 | F190: 17q25 | G190: 4 | H190: =37-G190 -> 33 | I190: 19 | K190: 18番染色体 | L190: 18p11.32 | M190: 1 | N190: =13-M190 -> 12 | O190: 37 | P190: 18q23 | Q190: 2.5 | R190: =37-Q190 -> 34.5 | S190: 13
A191: 56mm | B191: 17p12 | C191: 10 | D191: =19-C191 -> 9 | E191: 37 | F191: 17q24 | G191: 8.5 | H191: =37-G191 -> 28.5 | I191: 19 | K191: 全長=50㎜ | L191: 18p11.31 | M191: 2 | N191: =13-M191 -> 11 | O191: 37 | P191: 18q22 | Q191: 8 | R191: =37-Q191 -> 29 | S191: 13
A192: ｐ | B192: 17p11.2 | C192: 15 | D192: =19-C192 -> 4 | E192: 37 | F192: 17q23 | G192: 12 | H192: 25 | I192: 19 | K192: 18p | L192: 18p11.2 | M192: 7 | N192: =13-M192 -> 6 | O192: 37 | P192: 18q21.3 | Q192: 12 | R192: 25 | S192: 13
A193: 19ｍｍ | B193: 17p11.1 | C193: 18.5 | D193: =19-C193 -> 0.5 | E193: 37 | F193: 17q22 | G193: 15 | H193: 22 | I193: 19 | K193: 13mm | L193: 18p11.1 | M193: 12 | N193: =13-M193 -> 1 | O193: 37 | P193: 18q21.2 | Q193: 14 | R193: 23 | S193: 13
A194: ｑ | F194: 17q21.3 | G194: 24 | H194: 13 | I194: 19 | K194: 18q | P194: 18q21.1 | Q194: 20 | R194: 17 | S194: 13
A195: 37mm | F195: 17q21.2 | G195: 28.5 | H195: 8.5 | I195: 19 | K195: 37mm | P195: 18q12.3 | Q195: 25 | R195: 12 | S195: 13
F196: 17q21.1 | G196: 30.5 | H196: 6.5 | I196: 19 | P196: 18q12.2 | Q196: 27.5 | R196: 9.5 | S196: 13
F197: 17q12 | G197: 33 | H197: 4 | I197: 19 | P197: 18q12.1 | Q197: 29.5 | R197: 7.5 | S197: 13
F198: 17q11.2 | G198: 35 | H198: 2 | I198: 19 | P198: 18q11.2 | Q198: 33 | R198: 4 | S198: 13
F199: 17q11.1 | G199: 36.5 | H199: 0.5 | I199: 19
C202: pter→距離 | D202: 動原体→距離 | G202: qter→距離 | H202: 動原体→距離 | M202: 20pter→距離 | N202: 動原体→距離 | Q202: 20pter→距離 | R202: 動原体→距離
A203: 19番全長 | B203: 19p13.3 | C203: 3.5 | D203: =20-C203 -> 16.5 | E203: 25 | F203: 19q13.4 | G203: 1.5 | H203: =25-G203 -> 23.5 | I203: 20 | K203: 20番の全長 | L203: 20p13 | M203: 2 | N203: =18.5-M203 -> 16.5 | O203: 24.5 | P203: 20q13.3 | Q203: 2 | R203: =24.5-Q203 -> 22.5 | S203: 18.5
A204: 45mm | B204: 19p13.2 | C204: 9 | D204: =20-C204 -> 11 | E204: 25 | F204: 19q13.3 | G204: 8 | H204: 17 | I204: 20 | K204: 43ｍｍ | L204: 20p12 | M204: 7 | N204: =18.5-M204 -> 11.5 | O204: 24.5 | P204: 20q13.2 | Q204: 6 | R204: 18.5 | S204: 18.5
A205: 19p | B205: 19p13.1 | C205: 13 | D205: =20-C205 -> 7 | E205: 25 | F205: 19q13.2 | G205: 15 | H205: 10 | I205: 20 | K205: 20p | L205: 20p11.2 | M205: 13 | N205: =18.5-M205 -> 5.5 | O205: 24.5 | P205: 20q13.1 | Q205: 10 | R205: 14.5 | S205: 18.5
A206: 20mm | B206: 19p12 | C206: 17 | D206: =20-C206 -> 3 | E206: 25 | F206: 19q13.1 | G206: 19 | H206: 6 | I206: 20 | K206: 18.5mm | L206: 20p11.1 | M206: 18 | N206: =18.5-M206 -> 0.5 | O206: 24.5 | P206: 20q12 | Q206: 14 | R206: 10.5 | S206: 18.5
A207: 19q | B207: 19p11 | C207: 19 | D207: =20-C207 -> 1 | E207: 25 | F207: 19q12 | G207: 23 | H207: 2 | I207: 20 | K207: 20q | P207: 20q11.2 | Q207: 20 | R207: 4.5 | S207: 18.5
A208: 25mm | F208: 19q11 | G208: 24.5 | H208: 0.5 | I208: 20 | K208: 24.5mm | P208: 20q11.1 | Q208: 24 | R208: 0.5 | S208: 18.5
C211: pter→距離 | D211: 動原体→距離 | G211: pter→距離 | H211: 動原体→距離 | K211: 22番全長 | M211: p→距離 | N211: 動原体→距離 | Q211: p→距離 | R211: 動原体→距離
A212: 21番全長 | B212: 21p13 | C212: 1.5 | D212: =10-C212 -> 8.5 | E212: 22 | F212: 21q22.3 | G212: 3 | H212: =22-G212 -> 19 | I212: 10 | K212: 35ｍｍ | L212: 22p13 | M212: 1.5 | N212: =10-M212 -> 8.5 | O212: 25 | P212: 22q13.3 | Q212: 2.5 | R212: =25-Q212 -> 22.5 | S212: 10
A213: 32mm | B213: 21p12 | C213: 4 | D213: =10-C213 -> 6 | E213: 22 | F213: 21q22.2 | G213: 7 | H213: 15 | I213: 10 | L213: 22p12 | M213: 4 | N213: =10-M213 -> 6 | O213: 25 | P213: 22q13.2 | Q213: 6 | R213: =25-Q213 -> 19 | S213: 10
A214: pの長さ | B214: 21p11.2 | C214: 7 | D214: =10-C214 -> 3 | E214: 22 | F214: 21q22.1 | G214: 11 | H214: 11 | I214: 10 | K214: 22p | L214: 22p11.2 | M214: 7 | N214: =10-M214 -> 3 | O214: 25 | P214: 22q13.1 | Q214: 13 | R214: 12 | S214: 10
A215: 10㎜ | B215: 21p11.1 | C215: 9.5 | D215: =10-C215 -> 0.5 | E215: 22 | F215: 21q21 | G215: 15 | H215: 7 | I215: 10 | K215: 10mm | L215: 22p11.1 | M215: 9 | N215: =10-M215 -> 1 | O215: 25 | P215: 22q12.3 | Q215: 11.5 | R215: 13.5 | S215: 10
A216: qの長さ | F216: 21q11.2 | G216: 19 | H216: 3 | I216: 10 | K216: 22q | P216: 22q12.2 | Q216: 13 | R216: 12 | S216: 10
A217: 22㎜ | F217: 21q11.1 | G217: 21 | H217: 1 | I217: 10 | K217: 25mm | P217: 22q12.1 | Q217: 14.5 | R217: 10.5 | S217: 10
P218: 22q11.2 | Q218: 19 | R218: 6 | S218: 10
P219: 22q11.1 | Q219: 24 | R219: 1 | S219: 10
... 17 more rows

Sheet Sheet2
A1: 切断点 | B1: 切断点がpの場合pterからの距離、 切断点がqの場合qterからの距離、 | C1: 切断点から動原体までの距離 | D1: 切断点がpにある場合qの全長、またqにある場合pの全長
A2: 9p22 | B2: 10.5 | C2: =28-B2 -> 17.5 | D2: 57
A3: 2.834645669 | B3: =2.8346456692*B2 -> 29.76377953 | C3: =2.8346456692*C2 -> 49.60629921 | D3: =A3*D2 -> 161.5748031
A4: 20p13 | B4: 2 | C4: =18.5-B4 -> 16.5 | D4: 24.5
B5: =A3*B4 -> 5.669291338 | C5: =A3*C4 -> 46.77165354 | D5: =A3*D4 -> 69.4488189
A6: 切断点1染色体番号 | B6: 切断点２の染色体番号
A7: 9 | B7: 20
A8: 切断点1のバンド名 | B8: 切断点２のバンド名 | C8: 相互転座の核型
A9: p22 | B9: p13 | C9: t(9;20)(p22;p13)
C23: 9 | H23: der(20)
C27: der9 | H27: 20

Sheet Sheet3
G1: 16.2
G2: 19.9
G3: 18.5
G4: 18.5
G5: 17.4
G6: 1.1
G7: =SUM(G1:G6) -> 91.6

Sheet Sheet1
A1: 切断点 | B1: 切断点がpの場合pterからの距離、 切断点がqの場合qterからの距離、 | C1: 切断点から動原体までの距離 | D1: 切断点がpにある場合qの全長、またqにある場合pの全長
A2: 12q22 | B2: 26 | C2: 34 | D2: 21
A3: 2.834645669 | B3: 73.7007874 | C3: 96.37795275 | D3: 59.52755905
A4: 15q13 | B4: 43 | C4: 9.5 | D4: 10
B5: 121.8897638 | C5: 26.92913386 | D5: 28.34645669
